bitfinex-derivatives/quotes_SOLF0:USTF0_20241222
["timestamp","ask_amount","ask_price","bid_price","bid_amount"]
[1734899547403,1.7154,179.22,179.13,2.7945]
[1734899547606,1.7154,179.22,179.11,3.48]
[1734899548112,1.7154,179.22,179.14,2.7944]
[1734899548313,3.48,179.24,179.11,3.48]
[1734899548608,3.48,179.24,179.13,35.22879435]
[1734899548810,3.48,179.24,179.19,2.7935]
[1734899549005,6.8978,179.27,179.13,35.22879435]
[1734899549201,6.8978,179.27,179.2,2.7935]
[1734899549400,6.8978,179.27,179.13,35.22879435]
[1734899549909,6.8978,179.27,179.18,2.7938]
[1734899550607,6.8978,179.27,179.2,2.7935]
[1734899550811,6.8978,179.27,179.13,35.22879435]
[1734899551311,3.4178,179.27,179.22,2.7931]
[1734899551710,6.8978,179.27,179.22,2.7931]
[1734899552312,35.22879435,179.34,179.2,35.22879435]
[1734899552607,3.48,179.32,179.2,35.22879435]
[1734899552808,3.48,179.32,179.26,2.7925]
[1734899553007,3.48,179.32,179.21,3.48]
[1734899553313,3.48,179.32,179.22,2.7931]
[1734899553610,3.48,179.32,179.18,3.48]
[1734899553908,36.14629001,179.31,179.2,2.7934]
[1734899554212,35.22879435,179.31,179.18,3.48]
[1734899554416,3.48,179.32,179.21,2.7932]
[1734899554705,3.48,179.32,179.18,3.48]
[1734899555210,0.91748925,179.31,179.23,2.793]
[1734899555608,36.1462836,179.31,179.16,92.70278995]
[1734899555816,3.48,179.32,179.16,92.70278995]
[1734899555817,35.22879435,179.28,179.16,92.70278995]
[1734899556003,4.39755505,179.27,179.16,92.70278995]
[1734899556311,3.48,179.27,179.14,92.70278995]
[1734899556920,3.48,179.27,179.12,3.48]
[1734899557110,1.7359,179.26,179.12,3.48]
[1734899557707,1.7359,179.26,179.14,92.70278995]
[1734899558109,1.7359,179.26,179.2,2.7935]
[1734899558816,1.7359,179.26,179.16,92.70278995]
[1734899559108,3.4049,179.25,179.16,92.70278995]
[1734899559310,1.7359,179.26,179.16,92.70278995]
[1734899559311,1.7359,179.26,179.17,92.70278995]
[1734899559503,1.7359,179.26,179.17,96.16278995]
[1734899559701,1.7359,179.26,179.18,92.70278995]
[1734899559922,1.7359,179.26,179.22,2.7931]
[1734899560202,1.7359,179.26,179.18,92.70278995]
[1734899560406,1.7359,179.26,179.19,92.70278995]
[1734899561412,1.7359,179.26,179.16,92.70278995]
[1734899561611,1.7359,179.26,179.17,2.7938]
[1734899563612,1.7359,179.26,179.15,92.70278995]
[1734899563613,35.22879435,179.25,179.15,92.70278995]
[1734899563912,13.86254961,179.24,179.15,92.70278995]
[1734899564109,0.91783229,179.25,179.17,35.22879435]
[1734899564314,0.91783229,179.25,179.18,1.6949]
[1734899564515,0.91783229,179.25,179.18,3.4403]
[1734899564704,0.91783229,179.25,179.24,2.7929]
[1734899565509,0.91783229,179.25,179.21,96.16278995]
[1734899566117,19.73056095,179.34,179.21,3.46]
[1734899566717,16.27056095,179.34,179.23,92.70278995]
[1734899566917,3.80575,179.33,179.23,92.70278995]
[1734899567522,35.22879435,179.32,179.21,92.70278995]
[1734899567811,3.80575,179.33,179.21,92.70278995]
[1734899567812,35.22879435,179.29,179.21,92.70278995]
[1734899568017,16.41576095,179.28,179.21,92.70278995]
[1734899568314,16.41576095,179.28,179.2,2.7935]
[1734899568515,16.41576095,179.28,179.18,5.1549]
[1734899568718,16.41576095,179.28,179.19,2.7937]
[1734899568916,35.22879435,179.23,179.17,92.70278995]
[1734899569117,35.22879435,179.2,179.16,90.05158995]
[1734899569422,18.01076095,179.19,179.16,90.05158995]
[1734899569619,5.055,179.19,179.16,90.05158995]
[1734899570019,1.595,179.19,179.16,90.05158995]
[1734899570219,3.46,179.18,179.13,2.7945]
[1734899570521,1.595,179.19,179.13,2.7945]
[1734899570723,3.46,179.18,179.08,30.27577097]
[1734899571221,3.46,179.18,179.07,270.9894483]
[1734899571415,3.46,179.18,179.14,2.7944]
[1734899572521,3.46,179.18,179.08,22.71100367]
[1734899572823,16.41576095,179.22,179.1,35.22879435]
[1734899573022,3.46,179.22,179.11,3.46]
[1734899573418,3.46,179.22,179.15,2.7943]
[1734899574517,3.46,179.22,179.11,3.46]
[1734899575229,5.78568225,179.24,179.11,3.46]
[1734899575428,3.46,179.23,179.11,3.46]
[1734899576219,0.91080147,179.22,179.1,35.22879435]
[1734899576424,0.91080147,179.22,179.09,30.26694003]
[1734899576623,3.46,179.21,179.09,30.26694003]
[1734899576825,0.9109434,179.2,179.11,2.7948]
[1734899577016,0.9109434,179.2,179.07,35.22879435]
[1734899577221,3.46,179.21,179.07,35.22879435]
[1734899577622,3.46,179.21,179.12,2.7947]
[1734899577823,0.91089621,179.2,179.07,35.22879435]
[1734899578016,0.91097226,179.19,179.11,2.7948]
[1734899578221,3.46,179.21,179.07,35.22879435]
[1734899578417,0.91094185,179.2,179.07,35.22879435]
[1734899578719,0.91094185,179.2,179.11,2.7947]
[1734899579834,0.91094185,179.2,179.06,1.7287]
[1734899580132,36.1397362,179.2,179.06,1.7287]
[1734899580331,9.67642055,179.19,179.09,2.7951]
[1734899580533,0.91105508,179.18,179.06,1.7287]
[1734899580829,2.59625508,179.18,179.06,1.7287]
[1734899581029,0.91105508,179.17,179.06,1.7287]
[1734899581225,0.91106633,179.16,179.06,1.7287]
[1734899581430,3.46,179.16,179.06,1.7287]
[1734899581626,12.95576095,179.19,179.1,35.22879435]
[1734899581838,23.42762497,179.2,179.11,3.2763]
[1734899582031,10.47186402,179.2,179.13,2.7945]
[1734899582235,3.46,179.23,179.11,3.2763]
[1734899582437,0.91073786,179.22,179.11,3.2763]
[1734899583436,3.46,179.21,179.11,3.2763]
[1734899583942,3.46,179.22,179.11,3.2763]
[1734899584232,3.46,179.22,179.16,2.794]
[1734899584437,3.46,179.22,179.11,3.2763]
[1734899585032,0.91074044,179.21,179.07,38.68879435]
[1734899586539,0.91074044,179.21,179.11,2.7948]
[1734899586741,0.91074044,179.21,179.07,38.68879435]
[1734899587136,3.46,179.2,179.13,2.7945]
[1734899587331,3.46,179.2,179.1,35.22879435]
[1734899588839,3.46,179.2,179.13,2.7945]
[1734899589042,3.46,179.2,179.1,35.22879435]
[1734899589444,3.46,179.2,179.16,2.794]
[1734899591235,1.5954,179.24,179.16,2.794]
[1734899591440,4.37049879,179.23,179.16,2.794]
[1734899591744,3.46,179.23,179.16,2.794]
[1734899591945,3.46,179.23,179.1,38.68879435]
[1734899592147,5.87548225,179.26,179.13,35.22879435]
[1734899592445,5.1452,179.26,179.14,4.9726]
[1734899592645,4.19028225,179.26,179.14,4.9726]
[1734899592847,3.46,179.26,179.14,4.9726]
[1734899593049,4.19028225,179.26,179.15,3.46]
[1734899593340,3.72339,179.27,179.15,3.46]
[1734899593746,3.72339,179.27,179.21,2.7932]
[1734899594444,3.72339,179.27,179.15,3.46]
[1734899594643,16.73948879,179.27,179.15,3.46]
[1734899594840,0.90992057,179.26,179.15,3.46]
[1734899595041,27.21135281,179.27,179.15,3.46]
[1734899595543,0.91009403,179.26,179.2,2.7934]
[1734899595747,27.21135281,179.27,179.14,4.9726]
[1734899595936,1.6379,179.25,179.14,4.9726]
[1734899596137,0.91031881,179.24,179.17,2.7939]
[1734899596343,1.6379,179.25,179.14,4.9726]
[1734899596645,27.21135281,179.27,179.21,2.7932]
[1734899596840,27.21135281,179.27,179.14,4.9726]
[1734899597046,23.75135281,179.27,179.23,2.7929]
[1734899597349,0.26339,179.27,179.16,35.22879435]
[1734899597547,0.26339,179.27,179.15,3.46]
[1734899597548,0.26339,179.27,179.26,2.7925]
[1734899598351,23.50513943,179.34,179.23,3.3566]
[1734899598546,0.91011273,179.33,179.23,3.3566]
[1734899598946,3.46,179.35,179.28,2.7921]
[1734899599247,0.9101092,179.34,179.25,35.22879435]
[1734899599447,0.9101092,179.34,179.3,2.7918]
[1734899599646,0.9101092,179.34,179.25,35.22879435]
[1734899600244,0.9101092,179.34,179.23,5.0664]
[1734899600442,0.9101092,179.34,179.16,227.92433809]
[1734899600443,36.13890355,179.34,179.18,35.22879435]
[1734899600650,13.92638505,179.33,179.18,35.22879435]
[1734899600847,0.91028626,179.32,179.23,2.7929]
[1734899601046,0.91028626,179.32,179.18,35.22879435]
[1734899601441,0.91028626,179.32,179.17,6.8634]
[1734899601442,0.91028626,179.32,179.21,35.22879435]
[1734899601647,0.91020682,179.31,179.21,35.22879435]
[1734899602150,0.91020682,179.31,179.26,2.7924]
[1734899603150,3.46,179.32,179.26,2.7924]
[1734899603351,0.9102575,179.31,179.26,2.7924]
[1734899603563,0.9102575,179.31,179.25,2.7925]
[1734899603851,0.91028159,179.3,179.21,35.22879435]
[1734899604051,3.46,179.32,179.21,35.22879435]
[1734899604353,0.91032009,179.31,179.26,2.7925]
[1734899605150,0.91032009,179.31,179.21,35.22879435]
[1734899605452,3.46,179.32,179.27,2.7922]
[1734899605847,0.91028124,179.31,179.27,2.7922]
[1734899606450,0.91028124,179.31,179.26,2.7925]
[1734899606752,0.91028124,179.31,179.18,36.96839435]
[1734899606953,2.52188124,179.31,179.18,36.96839435]
[1734899607153,0.91028124,179.3,179.18,36.96839435]
[1734899608555,0.91028124,179.3,179.23,2.793]
[1734899608754,0.91028124,179.3,179.18,1.7396]
[1734899608954,24.41542067,179.3,179.18,1.7396]
[1734899609153,0.91028124,179.29,179.18,1.7396]
[1734899609357,0.91028124,179.29,179.18,35.22879435]
[1734899609956,0.91028124,179.29,179.23,2.7929]
[1734899610255,3.46,179.29,179.18,35.22879435]
[1734899610452,3.46,179.29,179.24,2.7928]
[1734899611152,3.46,179.29,179.25,2.7927]
[1734899611351,3.46,179.29,179.18,35.22879435]
[1734899612157,3.46,179.29,179.18,21.54144849]
[1734899612567,3.46,179.29,179.23,2.7929]
[1734899613457,1.6116,179.31,179.21,2.7933]
[1734899613659,4.37031086,179.3,179.18,21.54144849]
[1734899613855,3.46,179.3,179.18,21.54144849]
[1734899614264,4.18992565,179.32,179.18,21.54144849]
[1734899614554,21.54144849,179.37,179.3,2.7918]
[1734899614758,0.91008225,179.35,179.23,3.46]
[1734899615058,25.00144849,179.37,179.24,1.6875]
[1734899615258,15.02765996,179.36,179.3,2.7918]
[1734899615458,0.91001602,179.35,179.3,2.7918]
[1734899615653,15.02765996,179.36,179.3,2.7918]
[1734899615849,0.91002533,179.35,179.3,2.7918]
[1734899616050,15.02765996,179.36,179.3,2.7918]
[1734899616351,0.91003793,179.35,179.3,2.7918]
[1734899616756,0.91003793,179.35,179.28,2.7921]
[1734899616958,21.54144849,179.34,179.22,1.7235]
[1734899617154,0.91003793,179.33,179.22,1.7235]
[1734899617361,3.46,179.32,179.22,1.7235]
[1734899617559,3.46,179.33,179.29,2.7919]
[1734899619066,3.46,179.33,179.22,1.7235]
[1734899619265,3.46,179.33,179.3,2.7919]
[1734899620664,3.46,179.33,179.29,2.7921]
[1734899621660,3.46,179.33,179.23,21.54144849]
[1734899622060,3.46,179.33,179.26,2.7925]
[1734899622265,3.46,179.33,179.23,21.54144849]
[1734899623167,3.46,179.33,179.29,2.792]
[1734899623858,3.46,179.33,179.23,21.54144849]
[1734899624064,3.46,179.33,179.32,2.7916]
[1734899624661,12.99017915,179.39,179.32,2.7916]
[1734899624966,4.36984369,179.38,179.32,2.7916]
[1734899625267,21.54144849,179.43,179.35,2.7911]
[1734899625461,3.46,179.4,179.29,21.54144849]
[1734899625659,3.46,179.4,179.35,2.791]
[1734899625863,3.46,179.39,179.29,21.54144849]
[1734899627165,3.46,179.4,179.29,21.54144849]
[1734899627366,3.46,179.4,179.3,1.6903]
[1734899627769,4.18731682,179.44,179.32,21.54144849]
[1734899627964,12.11939189,179.45,179.32,21.54144849]
[1734899628160,3.46,179.44,179.32,21.54144849]
[1734899628367,3.46,179.45,179.35,21.54144849]
[1734899628566,3.46,179.45,179.36,1.5938]
[1734899628968,3.46,179.45,179.38,21.54144849]
[1734899629168,5.1191,179.49,179.38,21.54144849]
[1734899629370,1.6591,179.49,179.43,2.7898]
[1734899629571,5.1191,179.49,179.38,21.54144849]
[1734899629775,5.1191,179.49,179.38,23.18594849]
[1734899630583,5.1191,179.49,179.45,2.7894]
[1734899630773,3.66135,179.5,179.45,2.7894]
[1734899630969,3.66135,179.5,179.46,2.7894]
[1734899631172,0.20135,179.5,179.41,21.54144849]
[1734899631475,0.20135,179.5,179.47,21.54144849]
[1734899631674,10.41366367,179.57,179.47,21.54144849]
[1734899631969,16.41903876,179.58,179.47,21.54144849]
[1734899632177,21.54144849,179.55,179.43,1.6719]
[1734899632372,4.33555743,179.54,179.39,3.46]
[1734899632675,4.36885743,179.53,179.43,2.7898]
[1734899632866,22.45030592,179.52,179.43,2.7898]
[1734899633071,0.90885743,179.51,179.43,2.7898]
[1734899633471,0.90885743,179.51,179.39,3.46]
[1734899633668,0.90885743,179.51,179.44,2.7896]
[1734899634069,0.90885743,179.51,179.39,3.46]
[1734899634274,3.46,179.53,179.46,2.7893]
[1734899634777,0.90920557,179.52,179.39,3.46]
[1734899634981,0.90920557,179.52,179.47,2.7892]
[1734899635682,0.90920557,179.52,179.39,3.46]
[1734899635880,59.2482278,179.63,179.47,21.54144849]
[1734899635881,39.57134731,179.62,179.47,21.54144849]
[1734899636183,17.31073117,179.61,179.47,21.54144849]
[1734899636384,21.54144849,179.59,179.44,21.54144849]
[1734899636578,0.90883235,179.58,179.44,25.00144849]
[1734899636786,0.90892989,179.57,179.44,25.00144849]
[1734899636986,4.36892989,179.56,179.44,25.00144849]
[1734899637187,3.46,179.56,179.44,25.00144849]
[1734899637486,3.46,179.56,179.5,2.7886]
[1734899638288,3.46,179.56,179.44,25.00144849]
[1734899638587,0.90888632,179.55,179.41,21.54144849]
[1734899638783,5.09386265,179.55,179.46,2.7893]
[1734899638990,1.6595,179.61,179.48,21.54144849]
[1734899639184,0.90886153,179.6,179.48,21.54144849]
[1734899639583,3.46,179.59,179.52,2.7883]
[1734899639791,0.90886153,179.58,179.52,2.7883]
[1734899640185,0.90886153,179.58,179.5,2.7886]
[1734899640390,0.90886153,179.58,179.45,25.00144849]
[1734899640885,22.45031002,179.58,179.45,21.54144849]
[1734899641095,0.90896333,179.57,179.43,3.46]
[1734899641785,21.54144849,179.58,179.43,3.46]
[1734899641786,0.90894166,179.56,179.43,3.46]
[1734899641984,0.90894166,179.56,179.51,21.54144849]
[1734899642185,0.88549166,179.56,179.51,25.00144849]
[1734899642796,0.88549166,179.56,179.55,2.7879]
[1734899644781,3.46,179.62,179.51,3.46]
[1734899644981,3.46,179.65,179.58,2.7874]
[1734899645490,3.46,179.65,179.59,2.7873]
[1734899645692,3.67683,179.65,179.59,2.7873]
[1734899647393,3.65683,179.65,179.59,2.7873]
[1734899647695,3.65683,179.65,179.58,2.7875]
[1734899648196,3.65683,179.65,179.5,34.88155112]
[1734899648496,3.65683,179.65,179.51,3.44]
[1734899648694,3.65683,179.65,179.56,2.7877]
[1734899649995,3.65683,179.65,179.57,2.7876]
[1734899650897,0.21683,179.65,179.61,2.787]
[1734899652394,0.21683,179.65,179.55,1.6462]
[1734899652799,0.21683,179.65,179.58,2.7874]
[1734899653297,0.21683,179.65,179.55,1.6462]
[1734899653698,0.21683,179.65,179.58,2.7875]
[1734899654500,0.21683,179.65,179.57,2.7876]
[1734899655489,0.21683,179.65,179.54,2.788]
[1734899655699,34.88155112,179.63,179.49,3.44]
[1734899655900,3.44,179.62,179.49,3.44]
[1734899656096,3.44,179.62,179.54,2.7881]
[1734899656600,3.44,179.62,179.49,3.44]
[1734899657201,3.44,179.62,179.48,3.4185]
[1734899657896,0.90168033,179.61,179.48,3.4185]
[1734899658099,3.44,179.62,179.48,3.4185]
[1734899658299,3.44,179.62,179.52,2.7884]
[1734899660816,34.88155112,179.6,179.5,2.7887]
[1734899661196,36.63905112,179.6,179.48,3.4185]
[1734899662605,36.63905112,179.6,179.47,1.6763]
[1734899662803,5.08566714,179.59,179.47,1.6763]
[1734899663103,4.1838383,179.59,179.48,2.7889]
[1734899663300,0.90186242,179.58,179.48,2.7889]
[1734899663499,34.88155112,179.54,179.46,92.84360446]
[1734899663701,3.44,179.57,179.43,223.63507285]
[1734899663702,34.88155112,179.51,179.43,92.84360446]
[1734899663898,34.88155112,179.54,179.43,92.84360446]
[1734899664096,3.44,179.55,179.47,2.7891]
[1734899664303,3.44,179.55,179.44,3.44]
[1734899664703,3.44,179.55,179.52,2.7884]
[1734899665098,3.44,179.55,179.46,1.746]
[1734899665500,3.44,179.55,179.46,147.1545278]
[1734899666410,3.44,179.55,179.5,2.7887]
[1734899666803,3.44,179.55,179.47,22.52782429]
[1734899667007,21.48142704,179.54,179.45,92.84360446]
[1734899667608,21.48142704,179.54,179.45,95.63300446]
[1734899667906,21.48142704,179.54,179.45,2.7894]
[1734899668404,3.44,179.58,179.41,92.84360446]
[1734899668708,21.48142704,179.56,179.41,92.84360446]
[1734899669105,25.6647579,179.56,179.41,92.84360446]
[1734899669506,3.44,179.58,179.44,2.7896]
[1734899669507,21.48142704,179.53,179.44,2.7896]
[1734899669706,3.44,179.52,179.44,2.7896]
[1734899669907,3.44,179.52,179.42,145.47584849]
[1734899670106,3.44,179.52,179.46,2.7893]
[1734899670311,3.44,179.52,179.4,24.92142704]
[1734899670609,3.44,179.52,179.47,2.789]
[1734899670811,5.1445,179.55,179.4,24.92142704]
[1734899671104,13.91551657,179.55,179.41,145.4829749]
[1734899671312,18.09953341,179.55,179.41,145.4829749]
[1734899671502,21.48142704,179.53,179.41,145.4829749]
[1734899671707,21.48142704,179.53,179.42,22.55973019]
[1734899671907,4.24160395,179.52,179.42,22.55973019]
[1734899672106,21.48142704,179.47,179.42,22.55973019]
[1734899672305,3.44,179.46,179.42,22.55973019]
[1734899673105,5.0384,179.46,179.35,205.02169953]
[1734899673300,17.99343341,179.46,179.37,2.7907]
[1734899673506,21.48142704,179.44,179.35,205.02169953]
[1734899673908,0.90264601,179.43,179.35,205.02169953]
[1734899674112,17.19707942,179.43,179.35,205.02169953]
[1734899674312,0.90264601,179.42,179.35,112.17809507]
[1734899674614,3.44,179.41,179.32,2.7915]
[1734899675002,3.44,179.41,179.29,3.81142787]
[1734899675003,24.92142704,179.41,179.29,3.81142787]
[1734899675227,21.48142704,179.38,179.29,3.81142787]
[1734899675710,21.48142704,179.38,179.29,6.60322787]
[1734899676111,21.48142704,179.38,179.29,3.81142787]
[1734899677010,3.44,179.37,179.29,3.81142787]
[1734899677911,3.44,179.37,179.31,2.7916]
[1734899679712,4.18808278,179.42,179.29,3.81142787]
[1734899679914,6.7794,179.43,179.3,21.48142704]
[1734899680115,5.1742,179.43,179.3,24.92142704]
[1734899680317,23.07982704,179.46,179.38,2.7904]
[1734899680512,23.07982704,179.46,179.33,21.48142704]
[1734899680513,3.44,179.45,179.33,21.48142704]
[1734899680712,3.44,179.45,179.32,3.44]
[1734899680911,3.44,179.45,179.35,2.791]
[1734899681123,0.90259161,179.44,179.35,2.791]
[1734899681613,3.44,179.45,179.35,2.791]
[1734899682220,0.90254639,179.44,179.35,2.791]
[1734899683513,0.90254639,179.44,179.32,3.44]
[1734899683710,3.44,179.47,179.4,2.7902]
[1734899683915,3.44,179.47,179.33,1.7511]
[1734899684127,3.44,179.47,179.37,2.7907]
[1734899684318,34.95850745,179.45,179.33,1.7511]
[1734899684617,0.9025235,179.44,179.33,1.7511]
[1734899684913,0.9025235,179.44,179.35,2.791]
[1734899685318,0.9025235,179.44,179.32,3.44]
[1734899685523,0.90261628,179.43,179.34,2.7912]
[1734899685720,3.44,179.42,179.34,2.7912]
[1734899686216,38.39850745,179.42,179.29,3.81142787]
[1734899686420,5.92563709,179.41,179.29,3.81142787]
[1734899686715,5.0229,179.41,179.29,3.81142787]
[1734899687122,5.0229,179.41,179.29,38.76993532]
[1734899687316,8.4629,179.41,179.29,38.76993532]
[1734899687624,8.4629,179.41,179.35,2.791]
[1734899688120,8.4629,179.41,179.3,3.44]
[1734899688317,6.7509,179.41,179.36,2.7909]
[1734899688720,3.44,179.41,179.36,2.7909]
[1734899690142,3.44,179.41,179.3,3.44]
[1734899690724,3.44,179.41,179.33,2.7913]
[1734899692821,34.95850745,179.4,179.29,3.81142787]
[1734899693227,34.95850745,179.4,179.29,6.60342787]
[1734899693726,0.90283142,179.39,179.3,2.7918]
[1734899693927,0.90283142,179.39,179.29,3.81142787]
[1734899694929,34.95850745,179.37,179.21,1.7314]
[1734899695131,9.40979518,179.36,179.22,115.71408738]
[1734899695327,34.95850745,179.34,179.25,2.7926]
[1734899695526,34.95850745,179.34,179.22,112.27408738]
[1734899696227,34.95850745,179.34,179.24,2.7927]
[1734899698034,34.95850745,179.34,179.26,2.7923]
[1734899698331,8.5068,179.36,179.21,1.7314]
[1734899698724,8.5068,179.36,179.3,2.7918]
[1734899700238,8.5068,179.36,179.31,2.7917]
[1734899700537,3.331,179.36,179.25,3.44]
[1734899700841,3.331,179.36,179.29,2.7919]
[1734899701040,3.331,179.36,179.21,27.7224677]
[1734899701239,4.968,179.36,179.21,24.2824677]
[1734899701539,4.968,179.36,179.27,2.7922]
[1734899702136,21.53769214,179.34,179.26,2.7924]
[1734899702535,21.53769214,179.34,179.21,5.1714]
[1734899702743,21.53769214,179.34,179.27,2.7923]
[1734899703437,21.53769214,179.34,179.2,126.15934395]
[1734899703741,4.968,179.36,179.2,122.92344395]
[1734899703742,21.53769214,179.31,179.2,122.92344395]
[1734899703940,3.44,179.3,179.2,122.92344395]
[1734899704138,3.44,179.3,179.23,2.7929]
[1734899704343,21.53769214,179.34,179.2,144.46113609]
[1734899704635,1.6216,179.36,179.34,2.7912]
[1734899704842,3.44,179.38,179.34,2.7912]
[1734899705044,21.53769214,179.4,179.26,21.53769214]
[1734899705045,3.44,179.39,179.27,3.44]
[1734899705233,3.44,179.44,179.33,2.7913]
[1734899705436,5.078,179.44,179.29,21.53769214]
[1734899705640,5.078,179.44,179.29,114.3812966]
[1734899705831,5.078,179.44,179.36,2.7909]
[1734899706436,9.2650336,179.44,179.34,2.7912]
[1734899706740,3.44,179.43,179.3,57.5693667]
[1734899707441,3.44,179.43,179.34,2.7912]
[1734899708339,34.95730882,179.42,179.29,92.84360446]
[1734899708742,0.90277785,179.41,179.28,92.84360446]
[1734899709041,34.95730882,179.42,179.31,2.7916]
[1734899709231,0.90274855,179.41,179.31,2.7916]
[1734899709438,13.86216045,179.41,179.31,2.7916]
[1734899709739,12.9594119,179.41,179.31,2.7916]
[1734899710141,12.9594119,179.41,179.27,38.39730882]
[1734899710540,12.9594119,179.41,179.3,34.95730882]
[1734899710839,12.9594119,179.41,179.31,3.3364]
[1734899711241,12.9594119,179.41,179.32,1.6188]
[1734899711745,12.9594119,179.41,179.32,117.13959344]
[1734899711941,12.9594119,179.41,179.32,120.57959344]
[1734899712345,12.9594119,179.41,179.33,22.67718898]
[1734899712546,12.9594119,179.41,179.37,2.7906]
[1734899712939,12.9594119,179.41,179.34,2.7912]
[1734899713143,12.9594119,179.41,179.32,1.6188]
[1734899713338,4.18690922,179.41,179.32,1.6188]
[1734899713944,4.18690922,179.41,179.34,2.7911]
[1734899714837,4.18690922,179.41,179.32,1.6188]
[1734899715040,4.18690922,179.41,179.33,3.44]
[1734899715245,4.18690922,179.41,179.35,34.95730882]
[1734899715646,3.44,179.48,179.35,34.95730882]
[1734899715846,3.44,179.48,179.38,34.95730882]
[1734899716239,3.44,179.48,179.43,2.7897]
[1734899717950,3.372,179.5,179.43,2.7897]
[1734899718250,3.44,179.49,179.43,2.7897]
[1734899719749,3.44,179.49,179.35,34.95730882]
[1734899720052,0.90231129,179.48,179.35,34.95730882]
[1734899720250,3.44,179.49,179.35,34.95730882]
[1734899720652,0.90229047,179.48,179.35,34.95730882]
[1734899720951,0.90229047,179.48,179.43,2.7897]
[1734899721547,0.90229047,179.48,179.38,3.44]
[1734899722251,3.44,179.49,179.36,3.44]
[1734899723054,3.44,179.49,179.35,38.39730882]
[1734899723261,3.44,179.49,179.35,34.95730882]
[1734899723555,3.44,179.49,179.31,3.3364]
[1734899723556,34.95730882,179.45,179.31,3.3364]
[1734899723755,14.74196747,179.44,179.36,2.7909]
[1734899723951,5.043,179.44,179.36,2.7909]
[1734899724153,5.043,179.44,179.31,3.3364]
[1734899724955,13.84028135,179.44,179.31,3.3364]
[1734899725152,0.90255919,179.43,179.31,3.3364]
[1734899725349,5.043,179.44,179.31,3.3364]
[1734899725545,3.44,179.43,179.37,2.7906]
[1734899725948,3.44,179.43,179.31,1.6658]
[1734899726151,39.22839202,179.42,179.3,3.44]
[1734899726356,13.88892583,179.41,179.33,2.7912]
[1734899726655,12.98634263,179.41,179.27,3.44]
[1734899726857,0.90271972,179.4,179.32,2.7915]
[1734899727158,34.95730882,179.39,179.26,3.44]
[1734899727454,17.32922012,179.38,179.28,2.7921]
[1734899727655,0.90287749,179.37,179.28,2.7921]
[1734899728156,1.6299,179.36,179.25,1.7065]
[1734899728353,36.58720882,179.36,179.21,3.5836]
[1734899728552,0.9029855,179.35,179.21,3.5836]
[1734899728754,1.6299,179.36,179.21,3.5836]
[1734899728955,1.6299,179.36,179.24,34.95730882]
[1734899729655,1.6299,179.36,179.3,2.7917]
[1734899729858,1.6299,179.36,179.24,34.95730882]
[1734899730159,1.6299,179.36,179.29,2.792]
[1734899730459,1.6299,179.36,179.26,3.44]
[1734899730856,1.6299,179.36,179.31,2.7917]
[1734899731358,3.44,179.38,179.27,34.95730882]
[1734899731559,1.6247,179.42,179.3,34.95730882]
[1734899731755,1.6247,179.42,179.31,3.44]
[1734899731950,3.44,179.44,179.31,3.5839]
[1734899732149,0.90255799,179.43,179.31,3.5839]
[1734899732858,3.44,179.44,179.31,3.5839]
[1734899733553,3.44,179.44,179.33,34.95730882]
[1734899733852,1.6157,179.45,179.33,34.95730882]
[1734899734053,12.98091896,179.48,179.36,34.95730882]
[1734899734256,3.44,179.49,179.37,3.44]
[1734899734455,0.90231251,179.48,179.42,2.79]
[1734899735259,9.69686273,179.48,179.42,2.79]
[1734899735555,0.90231251,179.47,179.4,2.7902]
[1734899735964,12.98047317,179.48,179.37,3.44]
[1734899736461,0.90236022,179.47,179.37,3.44]
[1734899736662,3.42,179.48,179.37,3.44]
[1734899737461,3.42,179.48,179.41,2.7901]
[1734899737658,34.95730882,179.46,179.32,3.42]